bitfinex/quotes_BTCUSD_20241027
["timestamp","ask_amount","ask_price","bid_price","bid_amount"]
[1729991783551,0.098444,66947.0,66946.0,0.26654519]
[1729991784913,0.098444,66947.0,66946.0,0.255347]
[1729991785118,0.098444,66947.0,66946.0,0.26654582]
[1729991785775,0.098444,66947.0,66946.0,0.26683946]
[1729991788320,0.098444,66947.0,66946.0,0.26654582]
[1729991788536,0.098444,66947.0,66946.0,0.26683946]
[1729991788746,0.098444,66947.0,66946.0,0.26684034]
[1729991788953,0.001644,66947.0,66946.0,0.41734415]
[1729991789432,0.001644,66947.0,66946.0,0.51572071]
[1729991790353,0.001644,66947.0,66946.0,0.52365252]
[1729991791077,0.001644,66947.0,66946.0,0.69565252]
[1729991791567,0.001644,66947.0,66946.0,0.69765252]
[1729991792741,0.001644,66947.0,66946.0,0.81902908]
[1729991792993,0.001644,66947.0,66946.0,0.72065252]
[1729991795575,0.001644,66947.0,66946.0,0.81902908]
[1729991795858,0.00126871,66948.0,66947.0,0.47997301]
[1729991796117,0.00126871,66948.0,66947.0,0.53210026]
[1729991796361,0.00126871,66948.0,66947.0,0.56416108]
[1729991796606,0.00126871,66948.0,66947.0,0.66253764]
[1729991796853,0.00126871,66948.0,66947.0,0.56416108]
[1729991798309,0.00126871,66948.0,66947.0,0.66253764]
[1729991799267,0.00126871,66948.0,66947.0,0.66053764]
[1729991799495,0.00126871,66948.0,66947.0,0.66253764]
[1729991799972,0.00126871,66948.0,66947.0,0.6513447]
[1729991800214,0.00126871,66948.0,66947.0,0.66252925]
[1729991800674,0.001644,66956.0,66955.0,0.00822545]
[1729991800915,0.001644,66956.0,66955.0,0.63902093]
[1729991801160,0.001644,66956.0,66955.0,0.64102093]
[1729991802107,0.001644,66956.0,66955.0,0.73929145]
[1729991802329,0.001644,66962.0,66961.0,0.25434]
[1729991802558,0.001644,66962.0,66961.0,0.62043833]
[1729991802786,0.001644,66962.0,66961.0,0.617452]
[1729991803725,0.001644,66962.0,66961.0,0.640452]
[1729991803964,0.001644,66962.0,66961.0,0.64367745]
[1729991804202,0.001644,66962.0,66961.0,0.73727745]
[1729991804923,0.001644,66962.0,66961.0,0.73927695]
[1729991805173,0.001644,66962.0,66961.0,0.72142238]
[1729991805425,0.001644,66962.0,66961.0,0.72609232]
[1729991805912,0.001644,66962.0,66961.0,0.73774592]
[1729991806154,0.001644,66962.0,66961.0,0.74892197]
[1729991807380,0.001644,66962.0,66961.0,0.74425203]
[1729991807626,0.001644,66962.0,66961.0,0.74892206]
[1729991812942,0.001644,66962.0,66961.0,0.75489306]
[1729991814603,0.001644,66962.0,66961.0,0.75488239]
[1729991816278,0.001644,66962.0,66961.0,0.66128239]
[1729991823118,0.081644,66974.0,66972.0,0.277316]
[1729991823119,0.001644,66974.0,66972.0,0.277316]
[1729991823361,0.001644,66974.0,66972.0,0.44688067]
[1729991823861,0.001644,66974.0,66973.0,0.00822545]
[1729991824114,0.001644,66974.0,66973.0,0.42387767]
[1729991825122,0.001644,66974.0,66973.0,0.42389027]
[1729991829559,0.001644,66974.0,66973.0,0.41271175]
[1729991829776,0.001644,66974.0,66973.0,0.42388772]
[1729991833416,0.001644,66974.0,66973.0,0.48359172]
[1729991833644,0.001644,66974.0,66973.0,0.48359127]
[1729991835041,0.001644,66974.0,66973.0,0.68034439]
[1729991840915,0.001644,66974.0,66973.0,0.66916842]
[1729991841126,0.001644,66974.0,66973.0,0.6803464]
[1729991841868,0.001644,66974.0,66973.0,0.66449938]
[1729991842067,0.001644,66974.0,66973.0,0.68034705]
[1729991842270,0.001644,66974.0,66973.0,0.58663957]
[1729991842476,0.001644,66974.0,66973.0,0.48503756]
[1729991842698,0.082544,66974.0,66973.0,0.58341412]
[1729991844144,0.082544,66974.0,66973.0,0.58663957]
[1729991846033,0.082544,66974.0,66973.0,0.58664484]
[1729991847120,0.082544,66974.0,66973.0,0.58341939]
[1729991847339,0.082544,66974.0,66973.0,0.48004283]
[1729991847340,0.172544,66974.0,66973.0,0.48004283]
[1729991847579,0.172544,66974.0,66973.0,0.42033883]
[1729991847824,0.172544,66974.0,66973.0,0.41566975]
[1729991849603,0.172544,66974.0,66973.0,0.26516594]
[1729991849816,0.172544,66974.0,66973.0,0.149313]
[1729991850028,0.172544,66974.0,66973.0,0.16517295]
[1729991850251,0.17461219,66974.0,66973.0,0.01585995]
[1729991850459,0.17461219,66974.0,66968.0,0.149323]
[1729991850460,0.1727,66969.0,66968.0,0.149323]
[1729991850893,0.1802295,66969.0,66968.0,0.149323]
[1729991851105,0.1727,66969.0,66968.0,0.149323]
[1729991851327,0.17947455,66966.0,66965.0,0.001642]
[1729991851582,0.27785111,66966.0,66965.0,0.001642]
[1729991851795,0.28537101,66966.0,66965.0,0.001642]
[1729991852016,0.18699445,66966.0,66965.0,0.001642]
[1729991852702,0.23162168,66966.0,66965.0,0.001642]
[1729991852957,0.43470001,66966.0,66965.0,0.001642]
[1729991853139,0.59930366,66966.0,66965.0,0.001642]
[1729991853375,0.50155129,66966.0,66965.0,0.001642]
[1729991854475,0.43470001,66966.0,66965.0,0.001642]
[1729991854935,0.28537101,66966.0,66965.0,0.001642]
[1729991855157,0.32991757,66966.0,66965.0,0.001642]
[1729991855381,0.23154101,66966.0,66965.0,0.001642]
[1729991855584,0.18699445,66966.0,66965.0,0.001642]
[1729991858290,0.18781545,66966.0,66965.0,0.001642]
[1729991863440,0.33714445,66966.0,66965.0,0.001642]
[1729991864827,0.18781545,66966.0,66965.0,0.001642]
[1729991865049,0.33714445,66966.0,66965.0,0.001642]
[1729991865916,0.18781545,66966.0,66965.0,0.001642]
[1729991867433,0.33714445,66966.0,66965.0,0.001642]
[1729991868468,0.18781545,66966.0,66965.0,0.001642]
[1729991870672,0.33714445,66966.0,66965.0,0.001642]
[1729991871467,0.18781545,66966.0,66965.0,0.001642]
[1729991874753,0.33714445,66966.0,66965.0,0.001642]
[1729991881765,0.18781545,66966.0,66965.0,0.001642]
[1729991884563,0.18781545,66966.0,66965.0,0.150973]
[1729991884977,0.18746805,66966.0,66965.0,0.150973]
[1729991885704,0.18746805,66966.0,66965.0,0.001642]
[1729991888288,0.33679705,66966.0,66965.0,0.001642]
[1729991888506,0.18746805,66966.0,66965.0,0.001642]
[1729991889924,0.33679705,66966.0,66965.0,0.001642]
[1729991890361,0.18746805,66966.0,66965.0,0.001642]
[1729991892123,0.23202946,66966.0,66965.0,0.001642]
[1729991892324,0.25431017,66966.0,66965.0,0.001642]
[1729991892484,0.18746805,66966.0,66965.0,0.001642]
[1729991892645,0.25431017,66966.0,66965.0,0.001642]
[1729991893051,0.18746805,66966.0,66965.0,0.001642]
[1729991893353,0.4413176,66966.0,66965.0,0.001642]
[1729991893912,0.35219477,66966.0,66965.0,0.001642]
[1729991895114,0.46359831,66966.0,66965.0,0.001642]
[1729991895319,0.35238812,66966.0,66965.0,0.001642]
[1729991897769,0.50171712,66966.0,66965.0,0.001642]
[1729991898623,0.35238812,66966.0,66965.0,0.001642]
[1729991901279,0.18746805,66966.0,66965.0,0.001642]
[1729991901501,0.35253981,66966.0,66965.0,0.001642]
[1729991904200,0.50186881,66966.0,66965.0,0.001642]
[1729991904413,0.35253981,66966.0,66965.0,0.001642]
[1729991905852,0.50186881,66966.0,66965.0,0.001642]
[1729991906289,0.63602237,66966.0,66965.0,0.001642]
[1729991907483,0.50186881,66966.0,66965.0,0.001642]
[1729991908367,0.6360329,66966.0,66965.0,0.001642]
[1729991909340,0.63604749,66966.0,66965.0,0.001642]
[1729991909769,0.50188267,66966.0,66965.0,0.001642]
[1729991910044,0.63604786,66966.0,66965.0,0.001642]
[1729991911601,0.50188267,66966.0,66965.0,0.001642]
[1729991912780,0.63605028,66966.0,66965.0,0.001642]
[1729991914066,0.50188267,66966.0,66965.0,0.001642]
[1729991914276,0.63605255,66966.0,66965.0,0.001642]
[1729991914692,0.50188267,66966.0,66965.0,0.001642]
[1729991915331,0.63605483,66966.0,66965.0,0.001642]
[1729991918209,0.48672583,66966.0,66965.0,0.001642]
[1729991918436,0.35255367,66966.0,66965.0,0.001642]
[1729991922196,0.48672997,66966.0,66965.0,0.001642]
[1729991922416,0.35255367,66966.0,66965.0,0.001642]
[1729991923296,0.50188267,66966.0,66965.0,0.001642]
[1729991927331,0.35255367,66966.0,66965.0,0.001642]
[1729991928237,0.35257263,66966.0,66965.0,0.001642]
[1729991930959,0.48675678,66966.0,66965.0,0.001642]
[1729991931673,0.35257263,66966.0,66965.0,0.001642]
[1729991932811,0.35257457,66966.0,66965.0,0.001642]
[1729991933264,0.50190357,66966.0,66965.0,0.001642]
[1729991934401,0.35257457,66966.0,66965.0,0.001642]
[1729991938743,0.50190357,66966.0,66965.0,0.001642]
[1729991948812,0.75578394,66966.0,66965.0,0.001642]
[1729991949026,0.42908911,66962.0,66961.0,0.001642]
[1729991949239,0.64632288,66962.0,66961.0,0.001642]
[1729991949458,0.65342985,66962.0,66961.0,0.001642]
[1729991950650,0.69908071,66962.0,66961.0,0.001642]
[1729991950881,0.70908071,66962.0,66961.0,0.001642]
[1729991951358,0.71108071,66962.0,66961.0,0.001642]
[1729991953522,0.66542985,66962.0,66961.0,0.001642]
[1729991954632,0.66516344,66962.0,66961.0,0.001642]
[1729991954917,0.8111702,66962.0,66961.0,0.001642]
[1729991955123,0.90754676,66962.0,66961.0,0.001642]
[1729991955544,1.05820111,66962.0,66961.0,0.001642]
[1729991955755,1.05820211,66962.0,66961.0,0.001642]
[1729991956184,0.90754676,66962.0,66961.0,0.001642]
[1729991956605,0.76154,66962.0,66961.0,0.001642]
[1729991957505,0.91216613,66962.0,66961.0,0.001642]
[1729991958578,0.76354,66962.0,66961.0,0.001642]
[1729991958822,0.91416613,66962.0,66961.0,0.001642]
[1729991959039,0.81378957,66962.0,66961.0,0.001642]
[1729991959262,0.76140222,66962.0,66961.0,0.001642]
[1729991959472,0.90279628,66962.0,66961.0,0.001642]
[1729991962836,0.76140222,66962.0,66961.0,0.001642]
[1729991963953,0.00677455,66949.0,66948.0,0.149367]
[1729991964410,0.07367303,66949.0,66948.0,0.149367]
[1729991964413,0.00677455,66949.0,66948.0,0.149367]
[1729991964885,0.01384075,66949.0,66948.0,0.149367]
[1729991965629,0.00677455,66948.0,66947.0,0.14975227]
[1729991965868,0.05137021,66948.0,66947.0,0.14975227]
[1729991966340,0.05843641,66948.0,66947.0,0.14975227]
[1729991967047,0.01384075,66948.0,66947.0,0.14975227]
[1729991967511,0.05843641,66948.0,66947.0,0.14975227]
[1729991969356,0.01384075,66948.0,66947.0,0.14975227]
[1729991970030,0.01384075,66948.0,66947.0,0.42552883]
[1729991970031,0.00913439,66948.0,66947.0,0.42552883]
[1729991970262,0.0070662,66948.0,66947.0,0.42552883]
[1729991970507,0.00677455,66949.0,66948.0,0.243669]
[1729991970995,0.00206819,66949.0,66948.0,0.243669]
[1729991971217,0.00880623,66949.0,66948.0,0.243669]
[1729991971456,0.00880623,66949.0,66948.0,0.326769]
[1729991971670,0.00673804,66949.0,66948.0,0.326769]
[1729991972138,0.01351259,66949.0,66948.0,0.326769]
[1729991973763,0.00673804,66949.0,66948.0,0.326769]
[1729991974236,0.01351259,66949.0,66948.0,0.326769]
[1729991975180,0.01351259,66949.0,66948.0,0.327591]
[1729991977091,0.01351259,66949.0,66948.0,0.244491]
[1729991980449,0.0114444,66949.0,66948.0,0.244491]
[1729991980879,0.0114444,66949.0,66948.0,0.326191]
[1729991981783,0.0114444,66949.0,66948.0,0.42456756]
[1729991984374,0.01351259,66949.0,66948.0,0.42456756]
[1729991985246,0.01351259,66949.0,66948.0,0.24856756]
[1729991985457,0.01351259,66949.0,66948.0,0.150191]
[1729991990368,0.05814436,66949.0,66948.0,0.150191]
[1729991990784,0.01351259,66949.0,66948.0,0.150191]
[1729991991256,0.05814436,66949.0,66948.0,0.150191]
[1729991991890,0.05816399,66949.0,66948.0,0.150191]
[1729991993929,0.01351259,66949.0,66948.0,0.150191]
[1729991994575,0.08046024,66949.0,66948.0,0.150191]
[1729991996441,0.08051599,66949.0,66948.0,0.150191]
[1729991996869,0.01351259,66949.0,66948.0,0.150191]
[1729991997088,0.08051599,66949.0,66948.0,0.150191]
[1729991997310,0.01351259,66949.0,66948.0,0.150191]
[1729991997980,0.08051599,66949.0,66948.0,0.150191]
[1729991998200,0.01351259,66949.0,66948.0,0.150191]
[1729991998429,0.08051599,66949.0,66948.0,0.150191]
[1729991998900,0.01351259,66949.0,66948.0,0.150191]
[1729991999376,0.01351259,66949.0,66948.0,0.16139973]
[1729992000781,0.01351259,66949.0,66948.0,0.150191]
[1729992001005,0.01351259,66949.0,66948.0,0.1613998]
[1729992001731,0.08051599,66949.0,66948.0,0.150191]
[1729992002198,0.08051599,66949.0,66948.0,0.16139995]
[1729992002423,0.08051599,66949.0,66948.0,0.150191]
[1729992002863,0.01351259,66949.0,66948.0,0.150191]
[1729992003765,0.08052643,66949.0,66948.0,0.150191]
[1729992005057,0.10941259,66949.0,66948.0,0.150191]
[1729992005281,0.27432203,66949.0,66948.0,0.150191]
[1729992005488,0.3636599,66949.0,66948.0,0.150191]
[1729992005914,0.3636599,66949.0,66948.0,0.000822]
[1729992006141,0.53536137,66949.0,66948.0,0.000822]
[1729992006395,0.42368903,66949.0,66948.0,0.000822]
[1729992008288,0.27432203,66949.0,66948.0,0.000822]
[1729992009635,0.38600459,66949.0,66948.0,0.000822]
[1729992010336,0.38600459,66949.0,66948.0,0.150191]
[1729992010559,0.17842203,66949.0,66948.0,0.150191]
[1729992011062,0.10286313,66949.0,66948.0,0.150191]
[1729992011302,0.26777257,66949.0,66948.0,0.150191]
[1729992011538,0.17842203,66949.0,66948.0,0.150191]
[1729992012241,0.2677779,66949.0,66948.0,0.150191]
[1729992013179,0.01351259,66949.0,66948.0,0.150191]
[1729992013424,0.1028713,66949.0,66948.0,0.150191]
[1729992013655,0.26780095,66949.0,66948.0,0.150191]
[1729992015341,0.29014063,66949.0,66948.0,0.150191]
[1729992015579,0.17844224,66949.0,66948.0,0.150191]
[1729992016530,0.10288525,66949.0,66948.0,0.150191]
[1729992016769,0.2678149,66949.0,66948.0,0.150191]
[1729992017223,0.17844224,66949.0,66948.0,0.150191]
[1729992017884,0.17846225,66949.0,66948.0,0.150191]
[1729992019539,0.29017418,66949.0,66948.0,0.150191]
[1729992020260,0.17846225,66949.0,66948.0,0.150191]
[1729992020963,0.26783522,66949.0,66948.0,0.150191]
[1729992021194,0.01351259,66949.0,66948.0,0.150191]
[1729992021892,0.00880623,66949.0,66948.0,0.150191]
[1729992022900,0.01351259,66949.0,66948.0,0.150191]
[1729992024325,0.01351259,66949.0,66948.0,0.16139534]
[1729992025458,0.01351259,66949.0,66948.0,0.150191]
[1729992025680,0.01351259,66949.0,66948.0,0.16139475]
[1729992027712,0.05142552,66949.0,66948.0,0.41027512]
[1729992027924,0.00673804,66949.0,66948.0,0.31189856]
[1729992028138,0.00673804,66949.0,66948.0,0.39219856]
[1729992028569,0.04468748,66951.0,66950.0,0.149365]
[1729992028802,0.04468748,66951.0,66950.0,0.26361708]
[1729992029019,0.05142447,66951.0,66950.0,0.25894531]
[1729992029238,0.00673699,66951.0,66950.0,0.35371708]
[1729992030825,0.04468748,66953.0,66950.0,0.35371708]
[1729992031043,0.04675567,66954.0,66953.0,0.149358]
[1729992031270,0.04675567,66954.0,66953.0,0.25240633]
[1729992032124,0.00206819,66954.0,66953.0,0.25240633]
[1729992032336,0.04674314,66954.0,66953.0,0.25240633]
[1729992032783,0.04674314,66954.0,66953.0,0.25240618]
[1729992034343,0.00206819,66954.0,66953.0,0.25240618]
[1729992037386,0.04838714,66956.0,66955.0,0.149354]
[1729992037885,0.01301745,66956.0,66955.0,0.149354]
[1729992038523,0.06239876,66956.0,66955.0,0.149354]
[1729992038944,0.01772381,66956.0,66955.0,0.149354]
[1729992039192,0.01301745,66956.0,66955.0,0.149354]
[1729992039404,0.06239876,66956.0,66955.0,0.149354]
[1729992039620,0.01301745,66956.0,66955.0,0.149354]
[1729992039831,0.01094926,66956.0,66955.0,0.149354]
[1729992040683,0.01094926,66956.0,66955.0,0.15402552]
[1729992040912,0.01094926,66956.0,66955.0,0.31572143]
[1729992041409,0.001644,66956.0,66955.0,0.31572143]
[1729992042096,0.001644,66956.0,66955.0,0.40912143]
[1729992043599,0.001644,66956.0,66955.0,0.40911833]
[1729992043811,0.001644,66956.0,66955.0,0.42107663]
[1729992046716,0.001644,66956.0,66955.0,0.32767663]
[1729992047361,0.01095191,66956.0,66955.0,0.31648741]
[1729992047570,0.001644,66956.0,66955.0,0.31648741]
[1729992047789,0.01095191,66956.0,66955.0,0.31648741]
[1729992047998,0.001644,66956.0,66955.0,0.31648741]
[1729992048225,0.01095191,66956.0,66955.0,0.31648741]
[1729992048440,0.001644,66956.0,66955.0,0.31648741]
[1729992048646,0.01095191,66956.0,66955.0,0.31648741]
[1729992048856,0.001644,66956.0,66955.0,0.31648741]
[1729992049285,0.01095191,66956.0,66955.0,0.32767486]
[1729992054465,0.01095191,66956.0,66955.0,0.32300915]
[1729992054682,0.01095191,66956.0,66955.0,0.32768042]
[1729992055783,0.01095191,66956.0,66955.0,0.16521831]
[1729992056005,0.08865191,66956.0,66955.0,0.15402527]
[1729992056223,0.08865191,66956.0,66955.0,0.149354]
[1729992056431,0.08865191,66956.0,66955.0,0.150175]
[1729992061338,0.08865191,66956.0,66955.0,0.16137425]
[1729992062178,0.01095191,66956.0,66955.0,0.16137425]
[1729992063248,0.01095191,66956.0,66955.0,0.31187806]
[1729992063249,0.001644,66956.0,66955.0,0.31187806]
[1729992063906,0.001644,66956.0,66955.0,0.30067881]
[1729992064741,0.001644,66956.0,66955.0,0.30534996]
[1729992065642,0.001644,66956.0,66955.0,0.30067881]
[1729992065852,0.001644,66956.0,66955.0,0.30534995]
[1729992066702,0.001644,66956.0,66955.0,0.3165505]
[1729992066937,0.001644,66956.0,66955.0,0.31187936]
[1729992071966,0.001644,66956.0,66955.0,0.16137555]
[1729992072233,0.0463195,66956.0,66955.0,0.16137555]
[1729992072444,0.05562734,66956.0,66955.0,0.150175]
[1729992073359,0.01095184,66956.0,66955.0,0.150175]
[1729992074024,0.0556333,66956.0,66955.0,0.16137733]
[1729992078033,0.0556333,66956.0,66955.0,0.150175]
[1729992078034,0.14704076,66956.0,66955.0,0.150175]
[1729992078251,0.14704076,66956.0,66955.0,0.1613778]
[1729992078457,0.14704156,66956.0,66955.0,0.1613778]
[1729992078670,0.10235184,66956.0,66955.0,0.1613778]
[1729992078895,0.14704183,66956.0,66955.0,0.1613778]
[1729992079364,0.10235184,66956.0,66955.0,0.1613778]
[1729992079792,0.14704343,66956.0,66955.0,0.1613778]
[1729992080237,0.10235184,66956.0,66955.0,0.1613778]
[1729992080447,0.10235184,66956.0,66955.0,0.150175]
[1729992080875,0.10235184,66956.0,66955.0,0.1613775]
[1729992083000,0.18005184,66956.0,66955.0,0.150175]
[1729992083207,0.18005184,66956.0,66955.0,0.16137746]
[1729992084083,0.25386543,66956.0,66955.0,0.000821]
[1729992084298,0.35182476,66956.0,66955.0,0.000821]
[1729992084560,0.61290548,66956.0,66955.0,0.000821]
[1729992084770,0.50117576,66956.0,66955.0,0.000821]
[1729992090475,0.50099948,66956.0,66955.0,0.000821]
[1729992093532,0.63610294,66956.0,66950.0,0.000821]
[1729992093790,0.53228967,66951.0,66950.0,0.000821]
[1729992094054,0.84961557,66951.0,66950.0,0.000821]
[1729992094282,0.75854402,66951.0,66950.0,0.000821]
[1729992094516,0.85692058,66951.0,66950.0,0.000821]
[1729992094761,0.85677947,66951.0,66950.0,0.000821]
[1729992094984,1.00728328,66951.0,66950.0,0.000821]
[1729992097356,1.01928328,66951.0,66950.0,0.000821]
[1729992097612,0.91890672,66951.0,66950.0,0.000821]
[1729992097859,1.05263618,66951.0,66950.0,0.000821]
[1729992098555,0.91890672,66951.0,66950.0,0.000821]
[1729992099028,0.76840291,66951.0,66950.0,0.000821]
[1729992101128,0.86777947,66951.0,66950.0,0.000821]
[1729992101355,0.86977947,66951.0,66950.0,0.000821]
[1729992102093,0.88270063,66951.0,66950.0,0.000821]
[1729992103663,0.88239445,66951.0,66950.0,0.000821]
[1729992103872,1.0189771,66951.0,66950.0,0.000821]
[1729992104115,1.0199771,66951.0,66950.0,0.000821]
[1729992104753,1.0189771,66951.0,66950.0,0.000821]
[1729992104957,1.0229771,66951.0,66950.0,0.000821]
[1729992105429,1.0249771,66951.0,66950.0,0.000821]
[1729992106092,1.0299771,66951.0,66950.0,0.000821]
[1729992106299,1.0239771,66951.0,66950.0,0.000821]
[1729992106512,1.0289771,66951.0,66950.0,0.000821]
[1729992106727,1.0339771,66951.0,66950.0,0.000821]
[1729992106955,1.0339771,66951.0,66948.0,0.000822]
[1729992106956,0.02377455,66949.0,66948.0,0.000822]
[1729992107191,0.52054536,66949.0,66948.0,0.000822]
[1729992107420,0.69344371,66949.0,66948.0,0.000822]
[1729992107651,0.82694139,66949.0,66948.0,0.000822]
[1729992108155,0.52906891,66949.0,66948.0,0.000822]
[1729992108384,0.98133062,66949.0,66948.0,0.000822]
[1729992108619,0.00677455,66930.0,66929.0,0.22240179]
[1729992109032,0.00677455,66930.0,66926.0,0.000822]
[1729992109243,0.00677455,66930.0,66929.0,0.149412]
[1729992109244,0.0160342,66930.0,66929.0,0.149412]
[1729992109459,0.00677455,66930.0,66929.0,0.149412]
[1729992109669,0.0160342,66930.0,66929.0,0.245712]
[1729992109877,0.00677455,66930.0,66929.0,0.245712]
[1729992110088,0.0160342,66930.0,66929.0,0.245712]
[1729992110302,0.00677455,66930.0,66929.0,0.0963]
[1729992110594,0.00677455,66930.0,66929.0,0.149412]
[1729992110804,0.0160342,66930.0,66929.0,0.149412]
[1729992111017,0.0160342,66930.0,66927.0,0.0753]
[1729992111018,0.00677455,66930.0,66927.0,0.374129]
[1729992111246,0.0160342,66930.0,66929.0,0.149412]
[1729992111466,0.00677455,66930.0,66929.0,0.149412]
[1729992111676,0.0160342,66930.0,66929.0,0.149412]
[1729992111916,0.00677455,66930.0,66929.0,0.149412]
[1729992112346,0.0160342,66930.0,66929.0,0.149412]
[1729992112986,0.0160342,66930.0,66927.0,0.149415]
[1729992113246,0.00206819,66928.0,66927.0,0.448246]
[1729992120893,0.00206819,66928.0,66927.0,0.54662256]
[1729992121148,0.00206819,66930.0,66929.0,0.448235]
[1729992121388,0.00206819,66930.0,66929.0,0.547635]
[1729992121839,0.00206819,66931.0,66929.0,0.398223]
[1729992122063,0.00677455,66931.0,66930.0,0.149409]
[1729992127368,0.00206819,66933.0,66932.0,0.149405]
[1729992128033,0.00677455,66933.0,66930.0,0.000822]
[1729992128276,0.00677455,66933.0,66932.0,0.149405]
[1729992128526,0.00677455,66931.0,66930.0,0.150229]
[1729992129015,0.0160342,66931.0,66930.0,0.000822]
[1729992129254,0.00677455,66931.0,66930.0,0.150231]
[1729992129492,0.0160342,66931.0,66930.0,0.150231]
[1729992129728,0.00677455,66931.0,66930.0,0.150231]
[1729992130201,0.0160342,66931.0,66930.0,0.150231]
[1729992130455,0.00677455,66931.0,66930.0,0.000822]
[1729992130697,0.1654412,66931.0,66930.0,0.000822]
[1729992131459,0.0160342,66931.0,66930.0,0.000822]
[1729992131930,0.1654412,66931.0,66930.0,0.000822]
[1729992132154,0.2640412,66931.0,66930.0,0.000822]
[1729992132409,0.30863786,66931.0,66930.0,0.000822]
[1729992132640,0.30863786,66931.0,66926.0,0.000822]
[1729992132641,0.17119055,66927.0,66926.0,0.000822]
[1729992132868,0.76132988,66927.0,66926.0,0.000822]
[1729992133093,0.67221206,66927.0,66926.0,0.000822]
[1729992133360,0.77058862,66927.0,66926.0,0.000822]
[1729992134716,0.77358862,66927.0,66926.0,0.000822]
[1729992135904,0.85314963,66927.0,66926.0,0.000822]
[1729992138670,0.85309987,66927.0,66926.0,0.000822]
[1729992142212,0.8530439,66927.0,66926.0,0.000822]
[1729992144550,0.77348289,66927.0,66926.0,0.000822]
[1729992147620,0.77348289,66927.0,66911.0,0.0799]
[1729992147621,0.00677455,66912.0,66911.0,0.0799]
[1729992148366,0.01601984,66912.0,66911.0,0.229352]
[1729992148593,0.00677455,66912.0,66911.0,0.229352]
[1729992152649,0.00677455,66912.0,66907.0,0.298919]
[1729992152874,0.00677455,66912.0,66908.0,0.298917]
[1729992153111,0.00677455,66909.0,66908.0,0.448375]
[1729992154698,0.01601888,66909.0,66908.0,0.448375]
[1729992154915,0.00677455,66909.0,66908.0,0.448375]
[1729992155152,0.01601775,66909.0,66908.0,0.448375]
[1729992160375,0.01601775,66909.0,66908.0,0.45957243]
[1729992162350,0.01601775,66909.0,66908.0,0.45958248]
[1729992165113,0.01601775,66909.0,66908.0,0.46040448]
[1729992169653,0.01601775,66909.0,66908.0,0.46041562]
[1729992169881,0.01601775,66909.0,66908.0,0.47163424]
[1729992171779,0.00677455,66909.0,66908.0,0.47163424]
[1729992172699,0.00206819,66909.0,66908.0,0.47163424]
[1729992172913,0.00677455,66909.0,66908.0,0.47163424]
[1729992173350,0.00677455,66909.0,66908.0,0.46041562]
[1729992173566,0.00677455,66909.0,66908.0,0.47163429]
[1729992176550,0.00677455,66909.0,66908.0,0.46041567]
[1729992176779,0.00470636,66909.0,66908.0,0.47187892]
[1729992178792,0.01394956,66909.0,66908.0,0.47187892]
[1729992181078,0.01394956,66909.0,66908.0,0.56577892]
[1729992181964,0.0092432,66909.0,66908.0,0.71628273]
[1729992182407,0.04463537,66911.0,66908.0,0.56682473]
[1729992182627,0.04463537,66911.0,66910.0,0.24783056]
[1729992182852,0.04934173,66911.0,66910.0,0.40955304]
[1729992183097,0.04463537,66915.0,66912.0,0.298899]
[1729992183315,0.06695306,66917.0,66912.0,0.298899]
[1729992183316,0.22240179,66916.0,66915.0,0.448329]
[1729992183535,0.22710815,66916.0,66915.0,0.448329]
[1729992183760,0.00470636,66916.0,66915.0,0.45953978]
[1729992186852,0.00470636,66916.0,66915.0,0.448329]
[1729992187077,0.00470636,66916.0,66915.0,0.45953473]
[1729992187508,0.00470636,66916.0,66915.0,0.31009173]
[1729992187721,0.00470636,66916.0,66915.0,0.448329]
[1729992188161,0.00470636,66916.0,66915.0,0.45953455]
[1729992188382,0.00470636,66916.0,66915.0,0.45953435]
[1729992188823,0.00470636,66916.0,66915.0,0.45953325]
[1729992192391,0.00470636,66916.0,66915.0,0.45953004]
[1729992195041,0.00470636,66916.0,66915.0,0.5579066]
[1729992195256,0.00470636,66916.0,66915.0,0.4084636]
[1729992195467,0.00470636,66916.0,66915.0,0.5579066]
[1729992196355,0.00470636,66916.0,66915.0,0.54670556]
[1729992196790,0.01394605,66916.0,66915.0,0.54670556]
[1729992197010,0.00470636,66916.0,66915.0,0.54670556]
[1729992197253,0.01394467,66916.0,66915.0,0.54670556]
[1729992197477,0.01394518,66916.0,66915.0,0.54670556]
[1729992202580,0.00470636,66916.0,66915.0,0.54670556]
[1729992203058,0.00470636,66916.0,66915.0,0.55790829]
[1729992203727,0.00470636,66916.0,66915.0,0.5695948]
[1729992203951,0.00470636,66916.0,66915.0,0.56959528]
[1729992204417,0.00470636,66916.0,66915.0,0.42015228]
[1729992204678,0.00470636,66916.0,66915.0,0.56959528]
[1729992206038,0.00470636,66922.0,66921.0,0.149429]
[1729992206283,0.22710815,66922.0,66921.0,0.24780556]
[1729992206503,0.23634547,66922.0,66921.0,0.24780556]
[1729992206719,0.01394368,66922.0,66921.0,0.24780556]
[1729992206938,0.00470636,66922.0,66921.0,0.24780556]
[1729992209267,0.00470636,66922.0,66921.0,0.25901136]
[1729992209503,0.01394093,66922.0,66921.0,0.25901136]
[1729992209726,0.00470636,66922.0,66921.0,0.25901136]
[1729992210393,0.00470636,66922.0,66921.0,0.24780556]
[1729992211718,0.01394156,66922.0,66921.0,0.25901148]
[1729992215176,0.01394156,66922.0,66921.0,0.25901133]
[1729992216295,0.01394156,66922.0,66921.0,0.24780556]
[1729992217210,0.01394156,66922.0,66921.0,0.25901071]
[1729992217444,0.01394156,66922.0,66921.0,0.24780556]
[1729992224894,0.01394156,66922.0,66921.0,0.149429]
[1729992226250,0.01394156,66922.0,66921.0,0.15025]
[1729992227121,0.01394156,66922.0,66921.0,0.16145441]
[1729992229787,0.01394156,66922.0,66921.0,0.16145656]
[1729992234578,0.01394156,66922.0,66921.0,0.16146181]
[1729992238239,0.01394156,66922.0,66921.0,0.15025]
[1729992238459,0.01394156,66922.0,66921.0,0.16146382]
[1729992241030,0.01394156,66922.0,66921.0,0.15025]
[1729992241245,0.0092352,66922.0,66921.0,0.1614641]
[1729992241494,0.16336856,66922.0,66921.0,0.0120351]
[1729992241732,0.23841154,66922.0,66921.0,0.000821]
[1729992241954,0.18970975,66922.0,66921.0,0.000821]
[1729992242168,0.23434454,66922.0,66921.0,0.000821]
[1729992242406,0.25666152,66922.0,66921.0,0.000821]
[1729992242634,0.27897878,66922.0,66921.0,0.000821]
[1729992242872,0.35447139,66922.0,66921.0,0.000821]
[1729992243525,0.36841971,66922.0,66921.0,0.000821]